bitfinex/quotes_SOLUSD_20251106
["timestamp","ask_amount","ask_price","bid_price","bid_amount"]
[1762440083884,0.72,157.88,157.84,6.89070527]
[1762440084176,0.72,157.88,157.82,0.1]
[1762440084342,6.33432571,157.87,157.83,6.89070527]
[1762440084539,13.22503098,157.87,157.82,6.99070527]
[1762440084860,7.03286684,157.85,157.82,0.1]
[1762440085168,7.61070527,157.86,157.82,0.1]
[1762440085339,0.72,157.85,157.82,0.1]
[1762440085849,22.17013998,157.87,157.82,6.99070527]
[1762440086161,7.05372307,157.89,157.82,0.1]
[1762440086342,7.05371836,157.89,157.86,6.89070527]
[1762440086542,6.33310268,157.91,157.87,6.89070527]
[1762440086762,6.89070527,157.9,157.85,6.89070527]
[1762440086941,0.14216157,157.89,157.84,6.89070527]
[1762440087141,6.89070527,157.88,157.82,0.1]
[1762440087342,6.89070527,157.88,157.82,6.99070527]
[1762440087537,0.72,157.87,157.83,6.89070527]
[1762440087743,20.592,157.88,157.84,6.89070527]
[1762440087945,20.592,157.88,157.85,6.89070527]
[1762440088154,0.72,157.87,157.83,6.89070527]
[1762440088363,6.33310268,157.91,157.86,6.89070527]
[1762440088562,7.05310268,157.91,157.84,0.7]
[1762440088765,22.8849056,157.91,157.86,6.89070527]
[1762440089070,0.72,157.9,157.87,6.89070527]
[1762440089244,6.33225421,157.93,157.89,6.89070527]
[1762440089447,6.33225421,157.93,157.9,6.89070527]
[1762440089669,6.33225421,157.93,157.89,6.89070527]
[1762440090169,0.14216157,157.96,157.9,6.89070527]
[1762440090366,20.592,157.94,157.91,6.89070527]
[1762440090580,20.592,157.94,157.86,0.7]
[1762440090581,26.92357232,157.94,157.9,6.89070527]
[1762440090762,50.36307333,157.94,157.86,0.7]
[1762440090957,6.89070527,157.92,157.86,6.89070527]
[1762440091153,7.61070527,157.93,157.83,0.7]
[1762440091351,6.89070527,157.91,157.83,0.7]
[1762440091569,42.89452963,157.94,157.83,6.89070527]
[1762440091570,6.89070527,157.88,157.83,6.89070527]
[1762440091871,0.14216157,157.89,157.82,0.1]
[1762440092067,0.14216157,157.89,157.82,6.99070527]
[1762440092264,6.89070527,157.87,157.82,6.99070527]
[1762440092466,6.89070527,157.85,157.82,0.1]
[1762440092667,0.14216157,157.84,157.82,0.1]
[1762440092873,0.72,157.84,157.82,0.1]
[1762440093668,6.33472697,157.86,157.82,0.1]
[1762440093867,0.72,157.85,157.82,6.99070527]
[1762440094071,0.72,157.85,157.82,0.1]
[1762440094471,6.33552965,157.84,157.82,0.1]
[1762440094665,6.33516574,157.85,157.82,6.99070527]
[1762440094866,7.05516574,157.85,157.82,0.1]
[1762440095588,6.3345874,157.87,157.84,6.89070527]
[1762440095763,7.0545874,157.87,157.83,6.89070527]
[1762440096587,6.3345874,157.87,157.83,6.89070527]
[1762440096881,29.06110694,157.87,157.82,0.1]
[1762440097183,0.14216157,157.85,157.82,0.1]
[1762440097394,14.97286684,157.85,157.82,0.1]
[1762440097676,0.68,157.84,157.82,0.1]
[1762440097978,20.592,157.83,157.82,0.1]
[1762440098194,0.68,157.84,157.82,0.1]
[1762440098399,7.57070527,157.84,157.82,0.1]
[1762440098556,22.17997464,157.8,157.73,0.67]
[1762440098758,30.09997464,157.8,157.76,6.89070527]
[1762440098973,14.25713561,157.8,157.77,6.89070527]
[1762440099163,7.92,157.8,157.73,0.67]
[1762440099366,6.89070527,157.78,157.71,0.1]
[1762440099559,7.92,157.77,157.71,0.1]
[1762440099763,7.92,157.77,157.72,6.89070527]
[1762440099959,0.14216157,157.84,157.76,6.89070527]
[1762440100258,7.92,157.83,157.8,6.89070527]
[1762440100463,7.92,157.83,157.82,6.89070527]
[1762440100779,6.89070527,157.87,157.82,13.22692076]
[1762440100780,7.94,157.87,157.82,13.22692076]
[1762440100982,7.94,157.87,157.84,6.89070527]
[1762440101179,0.68,157.92,157.86,6.89070527]
[1762440101392,0.68,157.92,157.83,0.67]
[1762440101393,0.68,157.92,157.87,6.89070527]
[1762440101560,8.62,157.92,157.87,6.89070527]
[1762440101762,15.51070527,157.92,157.86,6.89070527]
[1762440101980,0.68,157.91,157.86,6.89070527]
[1762440102173,0.68,157.91,157.87,6.89070527]
[1762440102482,0.68,157.91,157.86,6.89070527]
[1762440102659,14.83070527,157.92,157.83,0.67]
[1762440102660,7.94,157.92,157.9,6.89070527]
[1762440102868,7.00998957,157.98,157.85,7.94]
[1762440103080,7.00998957,157.98,157.91,6.89070527]
[1762440103081,7.94,157.97,157.91,6.89070527]
[1762440103271,7.94,157.97,157.86,0.67]
[1762440103272,6.89070527,157.94,157.86,0.67]
[1762440103472,6.89070527,157.94,157.89,6.89070527]
[1762440103684,7.57070527,157.94,157.89,6.89070527]
[1762440103903,0.68,157.93,157.86,0.67]
[1762440104105,0.68,157.96,157.9,6.89070527]
[1762440104287,6.89070527,157.93,157.88,6.89070527]
[1762440104467,6.89070527,157.92,157.82,0.67]
[1762440104673,7.94,157.93,157.87,6.89070527]
[1762440104998,21.84263525,157.93,157.88,6.89070527]
[1762440105165,14.83070527,157.93,157.88,6.89070527]
[1762440105497,6.89070527,157.9,157.8,21.262]
[1762440105685,6.89070527,157.89,157.84,6.89070527]
[1762440106189,30.10182622,157.93,157.85,6.89070527]
[1762440106503,0.68,157.91,157.86,6.89070527]
[1762440106670,8.62,157.93,157.83,16.12475875]
[1762440106870,14.95202989,157.93,157.89,6.89070527]
[1762440107105,14.95202989,157.93,157.91,6.89070527]
[1762440107106,7.94,157.93,157.91,6.89070527]
[1762440107404,14.95075028,157.96,157.92,6.89070527]
[1762440107703,7.94,157.96,157.93,6.89070527]
[1762440107993,0.68,157.99,157.95,6.89070527]
[1762440108197,0.68,157.99,157.91,0.67]
[1762440108495,21.272,157.99,157.96,6.89070527]
[1762440108793,14.26914336,158.0,157.96,6.89070527]
[1762440108995,0.68,157.99,157.94,6.89070527]
[1762440109289,7.57070527,157.99,157.94,6.89070527]
[1762440109760,0.68,157.98,157.94,6.89070527]
[1762440109964,0.68,157.98,157.91,0.67]
[1762440110297,0.68,157.98,157.95,6.89070527]
[1762440110588,0.68,157.98,157.94,6.89070527]
[1762440110888,7.00996911,157.98,157.95,6.89070527]
[1762440111088,22.83475705,157.98,157.91,0.67]
[1762440111269,0.68,157.97,157.93,6.89070527]
[1762440111664,0.68,157.97,157.94,6.89070527]
[1762440111863,0.68,157.97,157.93,6.89070527]
[1762440112795,29.72717764,157.97,157.91,6.89070527]
[1762440113304,8.63,157.96,157.91,6.89070527]
[1762440113502,0.71,157.96,157.92,6.89070527]
[1762440113706,9.78882769,158.04,157.95,6.89070527]
[1762440113867,9.78882769,158.04,157.88,6.96700275]
[1762440113868,0.71,158.05,158.02,6.89070527]
[1762440114186,0.14216157,158.07,158.03,6.89070527]
[1762440114398,0.71,158.07,158.03,6.89070527]
[1762440114561,6.89070527,158.06,157.97,0.71]
[1762440114768,6.32711167,158.05,158.01,6.89070527]
[1762440114968,7.03711167,158.05,158.01,6.89070527]
[1762440115277,0.71,158.04,158.01,6.89070527]
[1762440115478,0.71,158.04,158.0,6.89070527]
[1762440115673,0.14216157,158.07,158.01,6.89070527]
[1762440115887,7.03674484,158.06,158.02,6.89070527]
[1762440116086,29.74422854,158.06,157.95,7.92]
[1762440116289,0.71,158.05,158.01,6.89070527]
[1762440116680,7.0374742,158.05,158.02,6.89070527]
[1762440116871,0.71,158.05,158.02,6.89070527]
[1762440117392,0.71,158.14,158.03,0.71]
[1762440117586,0.71,158.12,158.08,6.89070527]
[1762440117902,0.71,158.12,158.04,0.71]
[1762440118103,0.71,158.12,158.07,6.89070527]
[1762440118304,0.2,158.13,158.08,0.71]
[1762440118494,0.2,158.13,158.09,6.89070527]
[1762440118805,7.23398502,158.13,158.03,7.03756186]
[1762440119099,7.23398502,158.13,158.06,6.89070527]
[1762440119100,29.93446705,158.13,158.06,6.89070527]
[1762440119284,7.60070527,158.12,158.05,6.89070527]
[1762440119480,21.302,158.12,158.06,6.89070527]
[1762440119701,0.71,158.11,158.06,6.89070527]
[1762440120201,7.03286684,158.1,158.04,6.89070527]
[1762440120400,7.03286684,158.1,157.98,0.71]
[1762440120401,7.03286684,158.08,157.98,0.71]
[1762440120604,20.592,158.08,158.05,6.89070527]
[1762440120792,6.32631112,158.07,158.04,6.89070527]
[1762440120987,6.32631112,158.07,158.0,0.71]
[1762440121307,6.32545006,158.1,158.05,6.89070527]
[1762440121502,27.6267136,158.11,158.07,6.89070527]
[1762440121693,27.6267136,158.11,158.01,9.78882769]
[1762440121694,27.6267136,158.11,158.08,6.89070527]
[1762440122008,16.00983597,158.13,158.04,0.71]
[1762440122009,6.32439759,158.12,158.04,0.71]
[1762440122213,6.32439759,158.12,158.08,6.89070527]
[1762440122386,0.71,158.11,158.06,6.89070527]
[1762440122587,0.71,158.11,158.07,6.89070527]
[1762440122783,6.32511068,158.1,158.07,6.89070527]
[1762440123105,6.32478389,158.11,158.08,6.89070527]
[1762440123282,0.2,158.13,158.1,6.89070527]
[1762440123608,0.2,158.18,158.12,6.89070527]
[1762440123907,0.71,158.3,158.17,34.37341054]
[1762440124106,0.71,158.3,158.25,6.89070527]
[1762440124287,7.60070527,158.3,158.24,6.89070527]
[1762440124478,6.89070527,158.28,158.22,6.89070527]
[1762440124677,0.71,158.3,158.18,0.71]
[1762440124678,6.89070527,158.26,158.18,0.71]
[1762440124909,6.31911532,158.25,158.2,6.89070527]
[1762440125404,20.592,158.27,158.18,0.71]
[1762440125583,16.10548288,158.32,158.23,6.89070527]
[1762440125784,69.19,158.35,158.18,7.60070527]
[1762440125785,0.71,158.28,158.18,7.60070527]
[1762440126086,21.302,158.28,158.18,7.60070527]
[1762440126285,0.71,158.28,158.24,6.89070527]
[1762440126499,20.592,158.28,158.24,6.89070527]
[1762440126699,0.14216157,158.26,158.2,6.89070527]
[1762440126993,6.31911532,158.25,158.2,6.89070527]
[1762440127203,7.02911532,158.25,158.16,8.63]
[1762440127404,7.02911532,158.25,158.06,1.99999999]
[1762440127405,6.89070527,158.23,158.06,1.99999999]
[1762440127708,7.03286684,158.2,158.14,6.89070527]
[1762440127915,63.50130792,158.25,158.15,6.89070527]
[1762440127916,20.592,158.22,158.15,6.89070527]
[1762440128208,0.14216157,158.18,158.13,6.89070527]
[1762440128412,4.51620989,158.18,158.12,4.37404832]
[1762440128607,5.08404832,158.17,158.1,4.37404832]
[1762440128915,20.592,158.19,158.11,0.71]
[1762440129094,0.71,158.25,158.18,4.37404832]
[1762440129423,0.71,158.25,158.22,4.37404832]
[1762440129628,20.592,158.26,158.22,4.37404832]
[1762440129788,0.71,158.25,158.21,4.37404832]
[1762440130204,4.37404832,158.29,158.23,4.37404832]
[1762440130414,0.71,158.28,158.23,4.37404832]
[1762440130708,0.14216157,158.27,158.22,4.37404832]
[1762440130913,0.71,158.28,158.24,4.37404832]
[1762440131104,0.71,158.29,158.23,4.37404832]
[1762440131286,0.71,158.29,158.2,6.32106318]
[1762440131486,0.71,158.29,158.26,4.37404832]
[1762440131715,0.71,158.29,158.21,0.71]
[1762440131716,0.71,158.33,158.22,4.37404832]
[1762440132015,7.02616669,158.33,158.27,4.37404832]
[1762440132195,27.19002111,158.33,158.23,0.71]
[1762440132534,7.02616669,158.33,158.28,4.37404832]
[1762440132816,0.2,158.35,158.3,4.37404832]
[1762440133015,0.91,158.35,158.28,6.31766038]
[1762440133202,0.2,158.35,158.34,4.37404832]
[1762440133792,0.2,158.35,158.34,5.08404832]
[1762440134415,0.2,158.44,158.34,14.87287601]
[1762440134593,0.2,158.44,158.42,4.37404832]
[1762440135116,0.2,158.44,158.43,4.37404832]
[1762440136050,27.37456323,158.44,158.32,0.7]
[1762440136195,0.14216157,158.42,158.35,4.37404832]
[1762440136393,4.51620989,158.42,158.36,4.37404832]
[1762440136593,0.71,158.42,158.37,4.37404832]
[1762440136892,0.91,158.44,158.4,4.37404832]
[1762440137099,0.2,158.44,158.42,4.37404832]
[1762440137489,0.91,158.44,158.42,4.37404832]
[1762440137694,0.91,158.44,158.41,4.37404832]
[1762440138328,6.51159025,158.44,158.41,4.37404832]
[1762440138493,7.22159025,158.44,158.36,31.08082769]
[1762440138698,11.59563857,158.44,158.39,4.37404832]
[1762440138896,0.91,158.44,158.39,4.37404832]
[1762440139218,0.2,158.44,158.41,4.37404832]
[1762440139406,0.2,158.44,158.43,4.37404832]
[1762440139908,0.2,158.44,158.4,14.16287601]
[1762440140215,0.2,158.44,158.4,14.86287601]
[1762440140418,0.2,158.44,158.41,0.7]
[1762440141015,0.2,158.44,158.41,7.0126929]
[1762440141218,0.2,158.44,158.41,0.7]
[1762440141430,0.2,158.44,158.42,0.7]
[1762440141638,0.2,158.44,158.4,21.292]
[1762440141923,0.91,158.54,158.44,9.78882769]
[1762440142128,0.2,158.54,158.53,4.37404832]
[1762440142797,0.2,158.54,158.53,35.38567144]
[1762440142997,0.2,158.54,158.53,41.06283034]
[1762440143228,0.2,158.54,158.53,31.27400265]
[1762440143432,0.2,158.54,158.53,41.06283034]
[1762440143819,0.2,158.54,158.53,34.75487601]
[1762440144125,0.2,158.54,158.53,4.37404832]
[1762440144908,0.2,158.54,158.44,9.78882769]
[1762440144909,11.57160477,158.54,158.44,9.78882769]
[1762440145115,7.19755645,158.54,158.49,4.37404832]
[1762440145310,0.69,158.53,158.49,4.37404832]
[1762440145512,0.69,158.53,158.5,4.37404832]
[1762440145712,0.2,158.54,158.52,4.37404832]
[1762440146005,0.2,158.54,158.53,14.79367144]
[1762440146215,0.2,158.54,158.5,9.78882769]
[1762440146545,0.69,158.53,158.49,28.492]
[1762440146711,0.2,158.54,158.51,4.37404832]
[1762440146907,0.2,158.54,158.52,4.37404832]
[1762440147425,0.69,158.53,158.51,4.37404832]
[1762440147735,0.89,158.54,158.5,4.37404832]
[1762440147914,0.89,158.54,158.51,4.37404832]
[1762440148305,0.2,158.54,158.51,4.37404832]
[1762440148504,0.89,158.54,158.47,16.0988711]
[1762440148721,7.19769277,158.54,158.5,4.37404832]
[1762440148917,7.19769277,158.54,158.42,0.773395]
[1762440148918,5.20620989,158.53,158.48,4.37404832]
[1762440149107,6.30875023,158.51,158.46,4.37404832]
[1762440149314,0.69,158.52,158.48,4.37404832]
[1762440149540,6.9986344,158.52,158.48,4.37404832]
[1762440149716,6.9986344,158.52,158.44,6.31150322]
[1762440149717,6.9986344,158.52,158.47,4.37404832]
[1762440150228,0.69,158.51,158.42,30.88082769]
[1762440150442,0.69,158.51,158.47,4.37404832]
[1762440150639,27.09958834,158.54,158.5,4.37404832]
[1762440150822,27.78958834,158.54,158.51,4.37404832]
[1762440151210,0.69,158.53,158.5,4.37404832]
[1762440152143,0.69,158.53,158.44,20.592]
[1762440152450,0.69,158.53,158.42,9.78882769]
[1762440152451,20.592,158.5,158.47,4.37404832]
[1762440152730,20.592,158.5,158.45,4.37404832]
[1762440152914,0.69,158.53,158.49,4.37404832]
[1762440152915,0.14216157,158.53,158.49,4.37404832]
[1762440153232,6.50758834,158.54,158.49,6.30942769]
[1762440153233,0.2,158.54,158.49,6.30942769]
[1762440153534,0.2,158.54,158.52,4.37404832]
[1762440154047,0.69,158.53,158.47,9.78882769]
[1762440154217,6.50770905,158.54,158.5,4.37404832]
[1762440154412,0.2,158.54,158.51,4.37404832]
[1762440154614,0.69,158.53,158.5,4.37404832]
[1762440155204,0.2,158.54,158.52,4.37404832]
[1762440155408,0.2,158.54,158.53,34.75487601]
[1762440155612,0.2,158.54,158.53,4.37404832]
[1762440156220,0.91,158.54,158.51,4.37404832]
[1762440156533,0.71,158.53,158.5,4.37404832]
[1762440156920,0.71,158.53,158.48,4.37404832]
[1762440157239,0.2,158.54,158.5,4.37404832]
[1762440157435,0.2,158.54,158.51,4.37404832]
[1762440157752,0.2,158.54,158.52,20.592]
[1762440157910,0.2,158.54,158.53,14.66287601]
[1762440158415,0.2,158.54,158.53,4.37404832]
[1762440158936,0.2,158.54,158.53,35.25487601]
[1762440159144,0.2,158.54,158.53,41.56283034]
[1762440159832,0.2,158.55,158.54,9.78882769]
[1762440160133,0.2,158.6,158.54,23.17363165]
[1762440160438,0.2,158.6,158.59,14.16287601]
[1762440160653,0.2,158.6,158.57,20.592]
[1762440160816,0.71,158.59,158.57,7.88]
[1762440161024,0.71,158.59,158.57,12.25404832]
[1762440161354,0.2,158.6,158.58,4.37404832]
[1762440161530,7.21519436,158.6,158.58,4.37404832]
[1762440161729,7.21519436,158.6,158.55,20.592]
[1762440161927,7.21519436,158.6,158.52,9.78882769]
[1762440161928,0.71,158.59,158.54,4.37404832]
[1762440162415,0.71,158.59,158.55,4.37404832]
[1762440162643,0.71,158.59,158.52,7.88]
[1762440163055,0.71,158.59,158.56,4.37404832]
[1762440163219,0.71,158.59,158.52,7.88]
[1762440163419,0.71,158.59,158.51,26.90043342]
[1762440163420,4.37404832,158.58,158.51,20.592]
[1762440163625,4.37404832,158.57,158.51,4.37404832]
[1762440163837,20.592,158.56,158.51,4.37404832]
[1762440164138,21.302,158.56,158.51,4.37404832]
[1762440164343,4.51620989,158.54,158.4,6.37404831]
[1762440164568,0.14216157,158.54,158.49,4.37404832]
[1762440164724,0.71,158.53,158.49,4.37404832]
[1762440164925,4.37404832,158.52,158.46,4.37404832]
[1762440165232,4.37404832,158.52,158.43,28.472]
[1762440165431,4.37404832,158.52,158.46,4.37404832]
[1762440165432,7.01875023,158.51,158.46,4.37404832]
[1762440165939,0.71,158.5,158.46,4.37404832]
[1762440166127,0.71,158.5,158.47,4.37404832]
[1762440166440,5.08404832,158.5,158.43,6.31188427]
[1762440166744,5.08404832,158.49,158.44,4.37404832]
[1762440167048,5.08404832,158.49,158.45,4.37404832]
[1762440167049,0.71,158.49,158.45,4.37404832]
[1762440167344,0.71,158.48,158.45,4.37404832]
[1762440167538,0.71,158.48,158.43,4.37404832]
[1762440168325,0.71,158.48,158.41,7.88]
[1762440168526,0.71,158.48,158.43,4.37404832]
[1762440169248,0.71,158.48,158.44,4.37404832]
[1762440169547,6.31034265,158.47,158.43,4.37404832]
[1762440169742,6.31034265,158.47,158.41,7.88]
[1762440170049,0.71,158.48,158.43,4.37404832]
[1762440170050,0.71,158.46,158.43,4.37404832]
[1762440170638,0.71,158.46,158.38,28.472]
[1762440170826,5.08404832,158.46,158.4,4.37404832]
[1762440171024,12.96404832,158.46,158.4,4.37404832]
[1762440171242,7.88,158.46,158.44,4.37404832]
[1762440171419,8.59,158.46,158.44,4.37404832]
[1762440171624,0.71,158.45,158.41,4.37404832]
[1762440171825,20.592,158.42,158.33,6.31592244]
[1762440172038,0.14216157,158.43,158.38,4.37404832]
[1762440172326,21.302,158.42,158.37,4.37404832]
[1762440172531,21.302,158.42,158.38,4.37404832]
[1762440172954,0.7,158.41,158.39,4.37404832]
[1762440173130,0.7,158.41,158.38,4.37404832]
[1762440173659,7.01286153,158.41,158.38,4.37404832]
[1762440173855,20.592,158.43,158.36,4.37404832]
[1762440173856,0.7,158.4,158.36,4.37404832]
[1762440174029,0.7,158.4,158.37,4.37404832]
[1762440174230,21.43416157,158.43,158.39,4.37404832]
[1762440174537,0.7,158.42,158.39,4.37404832]
[1762440174938,0.7,158.42,158.4,4.37404832]
[1762440175125,0.7,158.42,158.38,4.37404832]
[1762440175330,0.7,158.42,158.39,4.37404832]
[1762440175650,0.7,158.42,158.4,4.37404832]
[1762440175947,28.472,158.44,158.41,4.37404832]
[1762440176135,0.7,158.43,158.35,6.31512472]
[1762440176334,0.7,158.43,158.39,4.37404832]
[1762440176944,28.472,158.44,158.42,4.37404832]
[1762440177145,29.172,158.44,158.41,4.37404832]
[1762440177450,0.7,158.43,158.41,4.37404832]
[1762440177847,7.01197111,158.43,158.39,4.37404832]
[1762440178025,0.7,158.43,158.4,4.37404832]
[1762440178432,0.7,158.43,158.41,4.37404832]
[1762440179133,0.7,158.43,158.4,4.37404832]
[1762440179359,0.7,158.43,158.42,4.37404832]
[1762440179656,8.58,158.47,158.42,4.37404832]
[1762440179844,8.58,158.47,158.44,4.37404832]
[1762440180032,0.7,158.51,158.46,4.37404832]
[1762440180230,14.16287601,158.5,158.39,16.73366655]
[1762440180436,0.14216157,158.48,158.39,6.31348588]
[1762440180637,0.7,158.49,158.46,4.37404832]
[1762440180933,0.7,158.49,158.48,4.37404832]
[1762440181150,0.7,158.58,158.48,16.62809664]
[1762440181339,0.7,158.58,158.57,4.37404832]
[1762440181530,7.00596544,158.58,158.57,4.37404832]
[1762440181734,0.7,158.58,158.57,4.37404832]
[1762440181935,7.00596544,158.58,158.56,4.37404832]
[1762440182142,0.7,158.58,158.57,4.37404832]
[1762440182342,0.2,158.6,158.57,4.37404832]
[1762440182563,0.7,158.59,158.53,7.88]
[1762440182742,0.2,158.6,158.54,9.78882769]
[1762440182954,0.2,158.6,158.54,10.91958333]
[1762440183142,0.7,158.59,158.55,20.592]
[1762440183335,0.7,158.59,158.47,0.14216157]
[1762440183552,7.0059462,158.59,158.51,20.592]
[1762440183749,7.0059462,158.59,158.55,4.37404832]
[1762440184058,7.0059462,158.59,158.51,4.37404832]
[1762440184059,25.80820989,158.58,158.51,4.37404832]
[1762440184270,0.14216157,158.53,158.42,6.3123343]
[1762440184565,0.7,158.52,158.47,4.37404832]
[1762440185059,0.14216157,158.51,158.46,4.37404832]
[1762440185361,0.14216157,158.49,158.46,4.37404832]
[1762440185676,0.7,158.55,158.48,4.37404832]
[1762440185878,20.592,158.56,158.52,4.37404832]
[1762440186041,0.84216157,158.55,158.5,4.37404832]
[1762440186241,13.09620989,158.55,158.49,4.37404832]
[1762440186460,4.51620989,158.52,158.43,28.472]
[1762440186645,21.292,158.51,158.43,7.88]
[1762440186857,21.292,158.51,158.36,0.5]
[1762440186858,4.51620989,158.49,158.36,0.5]
[1762440187051,9.93098926,158.49,158.42,4.37404832]
[1762440187369,0.14216157,158.47,158.43,4.37404832]
[1762440187549,6.31074088,158.46,158.43,4.37404832]
[1762440187755,7.01074088,158.46,158.42,4.37404832]
[1762440188156,6.45264555,158.47,158.43,4.37404832]
[1762440188357,0.7,158.46,158.43,4.37404832]
[1762440188560,0.7,158.46,158.37,8.38]
[1762440188561,0.7,158.46,158.44,4.37404832]
[1762440188867,0.7,158.46,158.25,81.78841893]
[1762440188868,164.7,158.53,158.45,25.46604832]
[1762440189172,0.7,158.55,158.52,4.37404832]
[1762440189469,0.7,158.55,158.53,4.37404832]
[1762440189674,8.58,158.59,158.54,4.37404832]
[1762440189872,8.58,158.59,158.56,4.37404832]
[1762440190169,0.7,158.58,158.54,4.37404832]
[1762440190349,0.7,158.58,158.55,6.83674359]
[1762440190550,0.2,158.6,158.57,6.83674359]
[1762440190748,0.2,158.6,158.58,6.83674359]
[1762440191048,0.2,158.6,158.59,6.83674359]
[1762440191845,0.2,158.6,158.54,16.72696881]
[1762440192039,0.9,158.6,158.54,23.97632577]
[1762440192256,0.2,158.6,158.59,6.83674359]
[1762440192856,0.9,158.6,158.53,20.592]
[1762440193058,6.30556781,158.59,158.51,9.78882769]
[1762440193371,22.76948735,158.59,158.54,6.83674359]
[1762440193546,22.76948735,158.59,158.55,6.83674359]
[1762440193547,7.00556781,158.59,158.55,6.83674359]
[1762440193747,0.84216157,158.58,158.5,7.88]
[1762440194058,0.84216157,158.58,158.54,6.83674359]
[1762440194257,28.27090516,158.58,158.52,6.83674359]
[1762440194472,6.83674359,158.56,158.5,6.83674359]
[1762440194769,6.83674359,158.56,158.47,9.78882769]
[1762440194770,6.83674359,158.54,158.49,6.83674359]
[1762440195076,0.7,158.53,158.49,6.83674359]
[1762440195248,0.14216157,158.55,158.51,6.83674359]
[1762440195571,13.14430004,158.54,158.49,6.83674359]
[1762440195751,0.14216157,158.55,158.51,6.83674359]
[1762440195953,20.592,158.57,158.54,6.83674359]
[1762440196143,0.84216157,158.56,158.52,6.83674359]
[1762440196347,0.14216157,158.54,158.48,20.592]
[1762440196656,21.292,158.56,158.53,6.83674359]
[1762440197072,0.7,158.55,158.52,6.83674359]
[1762440197655,0.7,158.55,158.48,20.592]
[1762440197656,13.14430004,158.54,158.48,6.83674359]
[1762440197960,0.14216157,158.54,158.48,6.83674359]
[1762440198175,0.7,158.54,158.5,6.83674359]
[1762440198550,0.7,158.54,158.52,6.83674359]
[1762440198968,6.44923987,158.56,158.53,6.83674359]
[1762440199152,29.95231028,158.57,158.49,20.592]
[1762440199345,0.7,158.56,158.52,6.83674359]
[1762440199542,7.00702431,158.56,158.52,6.83674359]
[1762440199765,13.8437679,158.56,158.51,6.83674359]
[1762440199957,7.00702431,158.56,158.52,6.83674359]
[1762440200266,0.7,158.55,158.52,6.83674359]
[1762440200469,0.14216157,158.54,158.5,6.83674359]
[1762440200678,0.7,158.55,158.52,6.83674359]
[1762440200857,0.7,158.54,158.46,28.472]
[1762440201062,14.18650499,158.57,158.52,6.83674359]
[1762440201262,0.7,158.56,158.53,6.83674359]
[1762440201460,0.7,158.56,158.46,50.55958149]
[1762440201461,0.14216157,158.55,158.46,50.55958149]
[1762440201663,13.14430004,158.54,158.46,34.78272929]
[1762440201862,6.83674359,158.49,158.43,6.83674359]
[1762440202156,6.83674359,158.49,158.38,7.88]
[1762440202157,6.83674359,158.46,158.38,7.88]
[1762440202358,0.67,158.45,158.4,6.83674359]
[1762440202655,0.14216157,158.49,158.44,6.83674359]
[1762440202846,0.14216157,158.49,158.47,6.83674359]
[1762440202847,0.67,158.49,158.47,6.83674359]
[1762440203165,0.14216157,158.48,158.36,0.5]
[1762440203372,0.67,158.49,158.39,9.78882769]
[1762440203573,0.67,158.48,158.44,6.83674359]
[1762440203875,0.67,158.48,158.45,6.83674359]
[1762440204077,6.98003096,158.48,158.45,6.83674359]
[1762440204374,6.98003096,158.48,158.44,6.83674359]
[1762440204562,6.98003096,158.48,158.42,6.83674359]
[1762440204563,0.67,158.47,158.42,6.83674359]
[1762440205274,0.67,158.49,158.46,6.83674359]
[1762440205951,0.67,158.49,158.46,13.1474295]
[1762440206152,0.67,158.49,158.47,6.83674359]
[1762440206856,0.67,158.49,158.46,6.83674359]
[1762440207069,6.97957091,158.49,158.44,6.83674359]
[1762440207254,6.97957091,158.49,158.43,6.83674359]
[1762440207454,0.81216157,158.48,158.43,6.83674359]
[1762440207679,7.12244067,158.48,158.44,6.83674359]
[1762440207873,7.12244067,158.48,158.45,6.83674359]
[1762440208362,0.67,158.47,158.44,6.83674359]